bitfinex-derivatives/quotes_SOLF0:USTF0_20250301
["timestamp","ask_amount","ask_price","bid_price","bid_amount"]
[1740851703017,17.734,140.24,140.23,2.831e-05]
[1740851703219,18.98227392,140.24,140.23,2.831e-05]
[1740851709821,22.54227392,140.24,140.23,2.831e-05]
[1740851710315,22.54254888,140.24,140.23,2.831e-05]
[1740851710511,7.1391,140.14,140.13,3.8752]
[1740851711321,17.7187,140.15,140.13,3.8752]
[1740851711617,0.05341194,140.15,140.13,3.92635976]
[1740851711918,10.58,140.18,140.15,7.1383]
[1740851712115,10.58,140.18,140.13,3.92635976]
[1740851712518,17.7173,140.18,140.14,7.1388]
[1740851712822,10.58,140.18,140.13,3.92635976]
[1740851713022,0.04495478,140.17,140.15,7.1382]
[1740851713215,3.9252,140.25,140.13,3.92635976]
[1740851713416,11.82837166,140.24,140.13,3.8752]
[1740851713616,11.82832082,140.23,140.13,3.8752]
[1740851714023,1.24832082,140.22,140.2,7.1359]
[1740851714415,1.29422483,140.22,140.2,7.18184517]
[1740851714818,0.04590401,140.22,140.2,7.18184517]
[1740851715014,7.18100401,140.22,140.2,0.04594517]
[1740851717519,0.04590401,140.22,140.2,0.04594517]
[1740851717724,7.1355,140.21,140.2,0.04594517]
[1740851718320,7.18110401,140.22,140.2,0.04594517]
[1740851718525,0.04590401,140.22,140.2,0.04594517]
[1740851718826,0.04590401,140.22,140.2,7.18194517]
[1740851719023,7.18100401,140.22,140.2,0.04594517]
[1740851719422,0.04590401,140.22,140.2,0.04594517]
[1740851719724,7.1355,140.21,140.2,0.04594517]
[1740851721527,8.38382767,140.21,140.2,0.04594517]
[1740851722417,0.04590401,140.22,140.2,0.04594517]
[1740851723126,7.18100401,140.22,140.2,0.04594517]
[1740851724321,0.04590401,140.22,140.2,7.18194517]
[1740851725228,194.0,140.27,140.2,0.04594517]
[1740851725529,7.134,140.24,140.2,0.04594517]
[1740851725718,7.134,140.24,140.15,10.58]
[1740851725927,7.134,140.24,140.22,7.1348]
[1740851726424,7.18595692,140.24,140.22,7.1815474]
[1740851727025,0.05195692,140.24,140.22,7.1815474]
[1740851727528,0.05195692,140.24,140.22,0.0467474]
[1740851728617,7.1345,140.23,140.22,0.0467474]
[1740851730524,8.38262397,140.23,140.22,4.74e-05]
[1740851730831,8.38262513,140.23,140.22,4.74e-05]
[1740851731526,12.17592513,140.23,140.22,4.74e-05]
[1740851732830,12.17610594,140.23,140.22,4.74e-05]
[1740851736133,8.38280594,140.23,140.22,4.74e-05]
[1740851738132,8.38261503,140.23,140.22,4.74e-05]
[1740851739436,7.1345,140.23,140.22,4.74e-05]
[1740851747939,8.38262336,140.23,140.22,4.74e-05]
[1740851748744,7.1345,140.23,140.22,4.74e-05]
[1740851748948,8.38274956,140.23,140.22,4.74e-05]
[1740851752354,7.1345,140.23,140.22,4.74e-05]
[1740851752656,8.38277792,140.23,140.22,4.74e-05]
[1740851755460,18.96277792,140.23,140.22,4.74e-05]
[1740851755846,17.7145,140.23,140.22,4.74e-05]
[1740851756255,18.96265359,140.23,140.22,4.74e-05]
[1740851756460,17.7145,140.23,140.22,4.74e-05]
[1740851760667,18.9627005,140.23,140.22,4.74e-05]
[1740851761265,20.9457005,140.23,140.22,4.74e-05]
[1740851762566,20.94582942,140.23,140.22,4.74e-05]
[1740851762963,18.96282942,140.23,140.22,4.74e-05]
[1740851764069,11.82832942,140.23,140.22,4.74e-05]
[1740851764264,10.58,140.23,140.22,4.74e-05]
[1740851764775,17.7145,140.23,140.22,4.74e-05]
[1740851767482,7.45075649,140.31,140.22,4.74e-05]
[1740851767777,10.58,140.34,140.18,10.58]
[1740851767977,2.0114,140.35,140.19,1.42663528]
[1740851768166,8.37638325,140.34,140.19,1.42663528]
[1740851768365,1.24728325,140.33,140.19,1.42663528]
[1740851768571,7.1291,140.34,140.19,1.42663528]
[1740851768771,19.72,140.35,140.3,7.1309]
[1740851768974,12.5914,140.35,140.24,10.58]
[1740851769176,7.18279634,140.34,140.31,0.05303782]
[1740851769478,7.17820746,140.34,140.31,0.0484985]
[1740851771182,7.1295,140.33,140.31,0.0484985]
[1740851774698,7.1299,140.32,140.31,0.0484985]
[1740851781683,7.1296,140.33,140.31,0.0484985]
[1740851782582,7.17810746,140.34,140.31,0.0484985]
[1740851782777,7.17810746,140.34,140.31,7.1787985]
[1740851784693,0.04900746,140.34,140.32,7.1295]
[1740851787087,0.04900746,140.34,140.31,0.0484985]
[1740851787287,0.04900746,140.34,140.33,7.1294]
[1740851791497,3.8213,140.39,140.31,0.0484985]
[1740851791498,10.56,140.4,140.36,7.1278]
[1740851791688,10.56,140.4,140.25,1.8047]
[1740851791894,10.56,140.4,140.26,11.98592328]
[1740851792095,17.6862,140.4,140.37,7.1271]
[1740851792598,7.17211267,140.4,140.38,7.1268]
[1740851794204,0.04591267,140.4,140.38,7.1268]
[1740851795005,0.04591267,140.4,140.37,0.0541679]
[1740851795208,0.04591267,140.4,140.39,7.1264]
[1740851797601,0.04591267,140.4,140.37,0.0541679]
[1740851797807,7.17181267,140.4,140.37,0.0541679]
[1740851798007,0.04591267,140.4,140.37,0.0541679]
[1740851798601,3.27349412,140.4,140.37,0.0541679]
[1740851798802,2.02701267,140.4,140.37,0.0541679]
[1740851799002,7.1269,140.38,140.37,0.0541679]
[1740851800310,7.1287,140.35,140.32,7.1296]
[1740851801412,7.17774613,140.35,140.32,7.18370491]
[1740851802410,7.17774613,140.35,140.32,0.05410491]
[1740851802610,7.17774613,140.35,140.33,7.1294]
[1740851804211,7.17774613,140.35,140.32,0.05410491]
[1740851804411,7.17774613,140.35,140.32,7.18380491]
[1740851804821,7.17774613,140.35,140.33,7.1291]
[1740851805219,0.04904613,140.35,140.32,0.05410491]
[1740851805422,0.04904613,140.35,140.33,7.1291]
[1740851806822,7.17754613,140.35,140.33,7.1291]
[1740851808124,0.04904613,140.35,140.33,7.1291]
[1740851808623,0.04904613,140.35,140.33,7.1294]
[1740851809022,0.04904613,140.35,140.32,0.05410491]
[1740851809223,0.04904613,140.35,140.34,7.1289]
[1740851809820,0.04904613,140.35,140.32,7.18380491]
[1740851810417,0.04904613,140.35,140.32,0.05410491]
[1740851811022,7.1293,140.34,140.32,0.05410491]
[1740851811218,7.1293,140.34,140.32,7.18390491]
[1740851811417,0.04904613,140.35,140.32,7.18390491]
[1740851811628,7.17774613,140.35,140.32,7.18390491]
[1740851812029,7.129,140.34,140.32,7.18390491]
[1740851812826,7.129,140.34,140.32,0.05410491]
[1740851813528,7.129,140.34,140.32,7.18390491]
[1740851816031,7.17774613,140.35,140.32,7.18390491]
[1740851816928,0.04904613,140.35,140.32,0.05410491]
[1740851817434,0.04904613,140.35,140.34,7.1289]
[1740851822231,0.04904613,140.35,140.33,7.1292]
[1740851823027,7.17754613,140.35,140.33,7.1292]
[1740851823223,0.04904613,140.35,140.32,0.05410491]
[1740851823534,0.04904613,140.35,140.34,7.1289]
[1740851828134,7.17744613,140.35,140.33,7.1291]
[1740851830538,7.1289,140.34,140.32,7.18380491]
[1740851833731,0.04904613,140.35,140.32,7.18380491]
[1740851833933,0.04904613,140.35,140.34,7.1289]
[1740851843029,7.17774613,140.35,140.32,7.18380491]
[1740851843234,0.04904613,140.35,140.32,0.05410491]
[1740851843843,1.94394613,140.35,140.32,0.05410491]
[1740851844345,7.1294,140.33,140.32,0.05410491]
[1740851844534,1.94394613,140.35,140.31,76.4438126]
[1740851845247,7.1299,140.32,140.31,76.4438126]
[1740851845541,17.6699,140.32,140.31,76.4438126]
[1740851845958,10.54,140.32,140.31,76.4438126]
[1740851846847,10.54,140.32,140.31,83.5742126]
[1740851847544,10.54,140.32,140.31,76.4438126]
[1740851848551,17.6699,140.32,140.31,76.4438126]
[1740851848947,17.6699,140.32,140.31,36.7042063]
[1740851850048,17.6699,140.32,140.31,30.6330063]
[1740851850448,17.6699,140.32,140.31,24.3142063]
[1740851851754,10.54,140.32,140.3,79.53285931]
[1740851852055,9.1163,140.31,140.3,79.53285931]
[1740851854449,17.71672996,140.32,140.3,79.53285931]
[1740851855047,7.1304,140.31,140.3,79.53285931]
[1740851856754,17.71692996,140.32,140.3,79.53285931]
[1740851857951,7.1304,140.31,140.3,79.53285931]
[1740851862952,17.71692996,140.32,140.3,79.53285931]
[1740851864356,10.58672996,140.32,140.3,79.53285931]
[1740851865365,10.58672996,140.32,140.3,86.66355931]
[1740851866547,10.58672996,140.32,140.3,79.53285931]
[1740851867564,17.71702996,140.32,140.3,79.53285931]
[1740851868265,7.1304,140.31,140.3,79.53285931]
[1740851872970,7.1304,140.31,140.3,68.61275931]
[1740851873150,9.1332,140.31,140.3,35.84505931]
[1740851873355,9.1332,140.31,140.3,14.41835931]
[1740851876168,9.1332,140.31,140.3,0.05364669]
[1740851876379,7.131,140.3,140.29,137.35003025]
[1740851886971,7.1307,140.31,140.29,137.35003025]
[1740851889680,10.58672996,140.32,140.29,137.35003025]
[1740851890384,7.1304,140.31,140.29,137.35003025]
[1740851891281,7.131,140.3,140.29,137.35003025]
[1740851899392,0.04672996,140.32,140.29,137.35003025]
[1740851899684,10.58672996,140.32,140.29,137.35003025]
[1740851900385,0.04672996,140.32,140.3,7.1306]
[1740851900581,10.58672996,140.32,140.3,7.1306]
[1740851901991,17.71672996,140.32,140.29,137.35003025]
[1740851902790,10.58672996,140.32,140.29,137.35003025]
[1740851903590,17.71702996,140.32,140.29,137.35003025]
[1740851904590,7.1305,140.31,140.29,137.35003025]
[1740851905687,10.58672996,140.32,140.29,137.35003025]
[1740851905995,7.131,140.3,140.29,137.35003025]
[1740851916810,7.131,140.3,140.29,102.85123025]
[1740851917001,7.131,140.3,140.29,78.33143025]
[1740851917202,7.131,140.3,140.29,66.22903025]
[1740851917511,10.691,140.3,140.29,16.62913025]
[1740851917709,10.691,140.3,140.29,5.46943025]
[1740851918012,7.131,140.3,140.29,5.46943025]
[1740851921320,7.1307,140.31,140.29,5.46943025]
[1740851922120,19.88400684,140.3,140.29,5.46943025]
[1740851922621,30.57500684,140.3,140.29,5.46943025]
[1740851922815,32.58720684,140.3,140.29,5.46943025]
[1740851923022,32.58720684,140.3,140.29,3.025e-05]
[1740851924622,7.1315,140.29,140.28,177.23585963]
[1740851924818,7.1315,140.29,140.28,141.08405963]
[1740851925122,10.6915,140.29,140.28,114.74375963]
[1740851926624,32.1215,140.29,140.28,80.49355963]
[1740851926820,304.7215,140.29,140.28,29.55345963]
[1740851927012,346.82230553,140.29,140.28,29.55345963]
[1740851927214,346.82230553,140.29,140.28,16.49875963]
[1740851928208,346.82230553,140.29,140.28,9.36275963]
[1740851928619,390.82308541,140.29,140.28,9.36275963]
[1740851928925,383.37365803,140.29,140.28,9.36275963]
[1740851929319,390.82308541,140.29,140.28,9.36275963]
[1740851929820,390.82308541,140.29,140.27,331.17681744]
[1740851930027,7.1325,140.27,140.26,28.1540833]
[1740851930323,39.1025,140.27,140.26,28.1540833]
[1740851930525,42.6625,140.27,140.26,28.1540833]
[1740851931628,42.6625,140.27,140.26,21.0180833]
[1740851932018,121.31465803,140.27,140.26,21.0180833]
[1740851932226,128.76488282,140.27,140.26,21.0180833]
[1740851932630,128.76488282,140.27,140.26,13.8820833]
[1740851933432,227.90211768,140.27,140.26,13.8820833]
[1740851934023,249.32211768,140.27,140.26,3.0376833]
[1740851934223,249.32211768,140.27,140.26,8.33e-05]
[1740851935122,241.87189289,140.27,140.26,8.33e-05]
[1740851935318,249.32278232,140.27,140.26,8.33e-05]
[1740851937840,49.983,140.26,140.25,359.97009322]
[1740851938137,49.983,140.26,140.25,335.19699322]
[1740851938328,60.99402237,140.26,140.25,335.19699322]
[1740851938922,117.42938171,140.26,140.25,335.19699322]
[1740851939128,139.6461804,140.26,140.25,320.19699322]
[1740851939334,132.5131804,140.26,140.18,496.74507887]
[1740851939640,128.9531804,140.26,140.18,496.74507887]
[1740851940229,186.23867891,140.26,140.18,496.74507887]
[1740851940535,193.37567891,140.26,140.23,0.04846367]
[1740851940936,196.93567891,140.26,140.23,0.04846367]
[1740851941128,193.37567891,140.26,140.22,103.31816769]
[1740851942132,100.08215803,140.25,140.23,0.04723166]
[1740851943135,157.36765654,140.25,140.22,96.24939935]
[1740851944026,157.36765654,140.24,140.22,96.24939935]
[1740851944226,157.41980316,140.24,140.22,96.30157864]
[1740851944430,164.87135735,140.24,140.22,96.30157864]
[1740851945327,78.65215803,140.23,140.22,96.30157864]
[1740851946436,120.50389438,140.23,140.22,96.30157864]
[1740851947338,127.95571451,140.23,140.22,96.30157864]
[1740851949036,149.38571451,140.23,140.22,96.30157864]
[1740851950540,461.00690495,140.23,140.22,96.30157864]
[1740851954251,439.57690495,140.23,140.22,96.30157864]
[1740851954547,450.11690495,140.23,140.22,89.16557864]
[1740851954752,491.87215582,140.23,140.22,89.16557864]
[1740851955949,484.42033569,140.23,140.22,89.16557864]
[1740851957550,306.72742828,140.23,140.22,89.16557864]
[1740851963055,328.15742828,140.23,140.22,89.16557864]
[1740851967451,349.59742828,140.23,140.22,89.16557864]
[1740851968255,349.59742828,140.23,140.22,88.66557864]
[1740851968455,357.05004633,140.23,140.22,88.66557864]
[1740851968653,357.05004633,140.23,140.22,73.66557864]
[1740851968654,360.61004633,140.23,140.22,73.66557864]
[1740851968857,360.61004633,140.23,140.22,73.31007202]
[1740851969052,360.61004633,140.23,140.22,58.16507202]
[1740851969260,360.61004633,140.23,140.22,50.16507202]
[1740851969562,360.61004633,140.23,140.22,42.16507202]
[1740851969765,360.61004633,140.23,140.22,34.16507202]
[1740851970059,357.05004633,140.23,140.22,26.16507202]
[1740851970360,357.03004633,140.23,140.22,26.16507202]
[1740851970562,360.59004633,140.23,140.22,26.16507202]
[1740851970954,353.13742828,140.23,140.22,26.16507202]
[1740851971361,360.59057838,140.23,140.22,26.16507202]
[1740851972764,405.93382045,140.23,140.22,26.16507202]
[1740851973960,398.48067035,140.23,140.22,26.16507202]
[1740851974362,405.93435257,140.23,140.22,26.16507202]
[1740851976457,495.49621927,140.23,140.22,26.16507202]
[1740851977964,495.49621927,140.23,139.96,251.36]
[1740851978165,491.93621927,140.23,140.0,3.8382]
[1740851978366,491.93621927,140.23,140.04,7.1439]
[1740851978663,1.2494212,140.22,140.05,5.7517]
[1740851978865,491.93621927,140.23,140.05,12.86629001]
[1740851979166,0.05415775,140.15,140.12,0.05277823]
[1740851979468,31.95,140.14,140.05,5.7517]
[1740851979658,31.95,140.14,140.05,12.86629001]
[1740851979859,0.05367981,140.11,140.08,0.04983076]
[1740851980466,0.05367981,140.11,140.08,7.16442077]
[1740851985668,9.94634339,140.11,140.08,7.16442077]
[1740851988060,25.48652225,140.11,140.08,7.16442077]
[1740851989965,46.91652225,140.11,140.08,7.16442077]
[1740851990170,46.91652225,140.11,140.08,0.04983076]
[1740851991167,21.48367981,140.11,140.08,0.04983076]
[1740851992062,0.05367981,140.11,140.08,0.04983076]
[1740851992574,0.05367981,140.11,140.08,7.16442077]
[1740851996772,20.41266358,140.14,140.08,0.04983076]
[1740851996970,9.89266358,140.14,140.08,0.04983076]
[1740851997281,18.69341814,140.11,140.08,0.04983076]
[1740851998081,18.73964423,140.11,140.08,0.04983076]
[1740851998282,10.52,140.1,140.08,0.04983076]
[1740851998479,10.52,140.1,140.08,7.16442077]
[1740852001081,10.52,140.1,140.08,0.04983076]
[1740852001289,31.96,140.1,139.96,1.4289797]
[1740852001480,31.96,140.1,140.01,1.9294]
[1740852001684,31.96,140.1,140.02,1.8652]
[1740852002180,31.96,140.1,140.03,2.0157]
[1740852002386,0.04668203,140.07,140.05,0.05228598]
[1740852004890,39.61733635,140.07,140.05,0.05228598]
[1740852007998,9.89266358,140.06,140.05,0.05228598]
[1740852008197,31.33266358,140.06,140.05,0.05228598]
[1740852009095,31.33266358,140.06,139.97,3.9208]
[1740852009294,21.44,140.04,139.97,3.9208]
[1740852009500,194.0,140.03,139.98,1.938]
[1740852010500,0.05275358,140.02,139.99,0.05293449]
[1740852012995,194.0,140.03,139.99,0.05293449]
[1740852014107,0.04527915,140.02,139.99,0.05293449]
[1740852014598,18.76396791,140.06,139.99,0.05293449]
[1740852014802,10.54,140.05,139.99,0.05293449]
[1740852015100,18.76396791,140.06,139.99,0.05293449]
[1740852015304,10.54,140.05,139.99,7.19933449]
[1740852015497,18.76396791,140.06,139.99,0.05293449]
[1740852015703,0.05349948,140.03,139.99,0.05293449]
[1740852015899,3.96506739,140.06,140.03,7.1442]
[1740852016103,1.03346739,140.06,139.99,3.58]
[1740852016299,9.88415323,140.05,140.0,10.52]
[1740852016603,2.74415323,140.05,140.04,7.1442]
[1740852016808,2.74415323,140.05,140.0,14.1]
[1740852017008,2.74415323,140.05,140.03,0.0505351]
[1740852019801,2.74415323,140.05,140.03,3.6305351]
[1740852020202,2.74415323,140.05,140.03,0.0505351]
[1740852021211,2.74415323,140.05,140.03,3.6305351]
[1740852021412,2.74415323,140.05,140.03,10.7752351]
[1740852021816,29.69930528,140.06,140.03,3.6305351]
[1740852021817,0.04684557,140.06,140.03,3.6305351]
[1740852022006,0.04684557,140.06,140.03,0.0505351]
[1740852022819,0.04684557,140.06,140.03,7.1949351]
[1740852023011,0.04684557,140.06,140.03,0.0505351]
[1740852023212,0.04684557,140.06,140.03,3.6305351]
[1740852023406,0.04684557,140.06,140.05,7.1437]
[1740852023608,0.04684557,140.06,140.05,10.7237]
[1740852024012,0.04684557,140.06,140.05,3.58]
[1740852024215,0.04684557,140.06,140.04,7.144]
[1740852024406,0.04684557,140.06,140.03,0.0505351]
[1740852024608,0.04684557,140.06,140.03,7.1950351]
[1740852024909,0.04684557,140.06,140.03,0.0505351]
[1740852026208,0.04684557,140.06,140.04,7.1439]
[1740852026807,0.04684557,140.06,140.05,7.1437]
[1740852028517,0.04684557,140.06,140.04,7.1439]
[1740852028718,0.04684557,140.06,140.03,0.0505351]
[1740852029215,0.04684557,140.06,140.05,7.1437]
[1740852031825,0.04684557,140.06,140.04,7.144]
[1740852033320,0.04684557,140.06,140.05,7.1437]
[1740852034727,0.04684557,140.06,140.04,7.1439]
[1740852035723,0.04684557,140.06,140.03,7.1949351]
[1740852036322,0.04684557,140.06,140.03,0.0505351]
[1740852036629,10.52,140.05,140.03,0.0505351]
[1740852040330,17.66,140.05,140.03,0.0505351]
[1740852040527,17.66,140.05,139.96,312.16533887]
[1740852040726,17.66,140.05,139.94,0.73152477]
[1740852041420,17.66,140.05,139.97,7.1476]
[1740852041726,0.05360123,140.02,140.0,0.05075867]
[1740852042122,7.19360123,140.02,140.0,0.05075867]
[1740852043234,7.19360123,140.02,139.96,7.1478]
[1740852043419,7.19360123,140.02,139.94,0.73152477]
[1740852043817,1.8342,140.01,139.89,251.58]
[1740852044117,10.52,140.0,139.89,251.58]
[1740852044316,0.05056159,139.96,139.94,0.05309705]
[1740852045930,0.05056159,139.96,139.95,7.1488]
[1740852051725,10.52,140.0,139.94,0.05309705]
[1740852052336,10.52,140.0,139.98,7.1472]
[1740852053036,10.57323673,140.0,139.98,0.05412204]
[1740852053338,10.57323673,140.0,139.99,7.1467]
[1740852057345,0.05323673,140.0,139.99,7.1467]
[1740852062249,3.673e-05,140.0,139.99,7.1467]
[1740852065147,1.9824,140.08,140.05,7.1433]
[1740852065350,9.1224,140.08,140.05,7.1433]
[1740852065849,9.1224,140.08,140.06,7.1429]
[1740852066045,198.94154986,140.15,139.97,10.52]
[1740852066247,36.79245971,140.1,139.98,1.42877553]
[1740852066438,0.05030617,140.05,140.02,0.04866192]
[1740852067046,0.05030617,140.05,140.04,7.1442]
[1740852070750,3.8176,140.13,140.02,10.56866192]
[1740852070967,3.8176,140.13,140.03,1.42826537]
[1740852071253,1.8626,140.13,140.03,1.42826537]
[1740852071458,1.8626,140.13,140.11,7.1403]
[1740852071956,1.91060446,140.13,140.11,7.19361442]
[1740852072548,9.05060446,140.13,140.11,0.05331442]
[1740852072750,9.05060446,140.13,140.03,11.94826537]
[1740852072947,1.9769,140.12,140.03,1.42826537]
[1740852073352,9.1169,140.12,140.03,1.42826537]
[1740852073760,1.8626,140.13,140.12,7.1401]
[1740852074063,0.04917586,140.14,140.05,10.52]
[1740852074252,60.62616198,140.15,140.12,7.1398]
[1740852074453,67.76616198,140.15,140.12,7.18807388]
[1740852074665,67.81367408,140.15,140.12,7.18807388]
[1740852074960,57.29367408,140.15,140.12,0.04827388]
[1740852075150,50.15367408,140.15,140.12,0.04827388]
[1740852075353,0.0475121,140.15,140.12,0.04827388]
[1740852075954,0.0475121,140.15,140.14,7.1391]
[1740852083168,1.21e-05,140.15,140.14,7.1391]
[1740852083563,39.51304662,140.27,140.12,0.04827388]
[1740852083863,46.65304662,140.27,140.13,1.42724612]
[1740852084264,46.65304662,140.27,140.14,14.2779]
[1740852084453,46.65304662,140.27,140.15,10.5]
[1740852084654,46.65304662,140.27,140.16,1.8544]
[1740852084853,46.65304662,140.27,140.19,0.05230069]
[1740852085053,0.04626795,140.23,140.19,0.05230069]
[1740852085262,0.04626795,140.23,140.22,7.135]
[1740852098864,7.18626795,140.23,140.21,7.1351]
[1740852099573,7.18626795,140.23,140.22,7.135]
[1740852101478,7.18626795,140.23,140.2,7.1359]
[1740852101665,7.18626795,140.23,140.19,0.05230069]
[1740852101865,2.1087,140.22,140.2,7.136]
[1740852102376,9.2487,140.22,140.2,7.136]
[1740852102564,9.2487,140.22,140.21,7.1355]
[1740852102965,9.2487,140.22,140.2,7.1358]
[1740852103265,9.2487,140.22,140.19,0.05230069]
[1740852103671,9.2487,140.22,140.19,7.18860069]
[1740852103875,9.2487,140.22,140.19,0.05230069]
[1740852104377,4.2591,140.21,140.18,7.1368]
[1740852104876,11.3991,140.21,140.18,7.1368]
[1740852105275,11.3991,140.21,140.18,7.18661067]
[1740852105476,11.3991,140.21,140.18,0.04981067]
[1740852105876,11.3991,140.21,140.19,7.1366]
[1740852106177,11.3991,140.21,140.18,0.04981067]
[1740852106377,11.3991,140.21,140.15,7.1384]
[1740852106573,11.3991,140.21,140.13,53.0101917]
[1740852106979,11.3991,140.21,140.15,7.1381]
[1740852107168,11.3991,140.21,140.13,53.0101917]
[1740852107570,0.04865576,140.18,140.16,0.05359633]
[1740852107975,7.18865576,140.18,140.16,7.19129633]
[1740852108174,7.18865576,140.18,140.16,0.05359633]
[1740852108584,0.04865576,140.18,140.17,7.1376]
[1740852113082,0.04865576,140.18,140.16,0.05359633]
[1740852113384,7.18865576,140.18,140.16,0.05359633]
[1740852115176,17.68865576,140.18,140.13,1.42724612]
[1740852115689,17.68865576,140.18,140.14,7.1391]
[1740852116277,17.68865576,140.18,140.15,0.04722979]
[1740852117180,17.68865576,140.18,140.13,7.1394]
[1740852117884,17.68865576,140.18,140.14,7.1391]
[1740852118083,17.68865576,140.18,140.09,251.42]
[1740852118286,17.68865576,140.18,140.15,0.04933663]
[1740852120689,17.68865576,140.18,140.09,251.42]
[1740852120888,17.68865576,140.18,140.05,19.6147]
[1740852120889,17.64,140.18,140.05,18.7343]
[1740852121692,17.64,140.18,140.14,7.1388]
[1740852121894,17.64,140.18,140.12,0.04078759]
[1740852122090,0.05248368,140.17,140.12,0.04078759]
[1740852122490,7.19248368,140.17,140.13,7.1394]
[1740852122690,7.19248368,140.17,140.12,0.04078759]
[1740852124691,7.19248368,140.17,140.09,7.1414]
[1740852124894,1.24917933,140.16,140.05,4.4471]
[1740852125290,4.3863,140.15,140.05,4.4471]
[1740852125695,11.5263,140.15,140.05,4.4471]
[1740852125896,0.04977411,140.11,140.05,4.4471]
[1740852126386,7.18977411,140.11,140.05,4.4471]
[1740852127087,7.18977411,140.11,140.07,7.1424]
[1740852127288,7.18977411,140.11,140.05,4.4471]
[1740852127688,7.18977411,140.11,140.07,7.1424]
[1740852128998,7.18977411,140.11,140.08,7.1421]
[1740852130101,7.18977411,140.11,140.05,4.4471]
[1740852130301,7.18977411,140.11,140.09,7.1415]
[1740852130491,7.18977411,140.11,140.05,4.4471]
[1740852130691,0.04977411,140.11,140.05,4.4471]
[1740852131305,7.18977411,140.11,140.05,4.4471]
[1740852131512,7.18977411,140.11,140.09,7.1414]
[1740852133011,7.18977411,140.11,140.05,4.4471]
[1740852133219,0.04977411,140.11,140.1,7.1411]
[1740852133911,7.411e-05,140.11,140.1,7.1411]
[1740852134707,7.14,140.18,140.15,7.1383]
[1740852135016,7.14,140.18,140.08,10.5]
[1740852135424,7.14,140.18,140.17,7.1376]
[1740852135922,7.14,140.18,140.16,7.18409923]
[1740852136214,7.14,140.18,140.16,7.1377]
[1740852136518,7.14,140.18,140.17,7.1376]
[1740852136519,7.19485715,140.18,140.17,7.1376]
[1740852138342,0.05485715,140.18,140.17,7.1376]
[1740852140340,5.715e-05,140.18,140.17,7.1376]
[1740852150326,10.5,140.26,140.16,0.04977411]
[1740852150541,36.79245971,140.29,140.14,4.5951]
[1740852150751,11.74811271,140.28,140.14,4.5951]
[1740852150954,1.24811271,140.27,140.14,4.5951]
[1740852151154,17.64,140.28,140.15,14.2771]
[1740852151362,7.14,140.28,140.15,14.2771]
[1740852151679,7.14,140.28,140.2,0.05250472]
[1740852151847,0.05287023,140.23,140.2,0.05250472]
[1740852152044,0.05287023,140.23,140.22,7.135]
[1740852154132,1.24778337,140.29,140.26,7.1327]
[1740852154339,47.29245971,140.32,140.21,4.4284]
[1740852154536,1.24769945,140.31,140.21,4.4284]
[1740852154937,8.38769945,140.31,140.21,4.4284]
[1740852155135,1.24769945,140.3,140.21,4.4284]
[1740852155439,0.05212902,140.27,140.26,7.1327]
[1740852156043,7.19212902,140.27,140.26,7.1327]
[1740852158151,0.05212902,140.27,140.26,7.1327]
[1740852158349,29.65245971,140.34,140.25,0.05340295]
[1740852158545,36.79245971,140.34,140.24,2.2355]
[1740852158932,36.79245971,140.34,140.33,7.1294]
[1740852160033,7.14,140.34,140.33,7.1294]
[1740852162624,73.09273095,140.39,140.32,0.05348565]
[1740852162927,73.09273095,140.39,140.33,10.5]
[1740852163232,73.09273095,140.39,140.37,7.127]
[1740852163827,73.09273095,140.39,140.37,7.17436771]
[1740852163828,0.05401691,140.39,140.37,7.17436771]
[1740852168134,0.05401691,140.39,140.37,0.04736771]
[1740852168944,0.05401691,140.39,140.33,10.5]
[1740852169232,0.05401691,140.39,140.3,2.2557]
[1740852169425,1.24666969,140.41,140.34,7.1285]
[1740852169630,1.24666969,140.4,140.34,7.1285]
[1740852169932,14.9192,140.43,140.29,95.22514752]
[1740852169933,1.24666969,140.39,140.29,95.22514752]
[1740852170139,1.2926159,140.38,140.36,0.05083032]
[1740852170337,1.24666969,140.42,140.29,95.22514752]
[1740852170538,0.05069851,140.38,140.36,0.04924889]
[1740852170834,14.9192,140.43,140.36,0.04924889]
[1740852171034,0.04701185,140.38,140.36,0.04924889]
[1740852171233,1.24691015,140.42,140.36,0.04924889]
[1740852171430,0.04677114,140.38,140.36,0.04924889]
[1740852171738,0.04677114,140.38,140.37,7.1269]
[1740852175043,0.04677114,140.38,140.36,0.04924889]
[1740852176141,1.29346384,140.38,140.36,0.04924889]
[1740852176340,3.49226384,140.38,140.36,0.04924889]
[1740852176526,1.2466927,140.37,140.36,0.04924889]